[Event "AZE-ch Men 2019"]
[Site "Baku"]
[Date "2019.01.17"]
[Round "2"]
[White "Guliev, Logman"]
[Black "Bashirli, Nail"]
[Result "1/2-1/2"]
[ECO "B08"]
[WhiteElo "2322"]
[BlackElo "2324"]
[Annotator "NA"]
[PlyCount "167"]
[EventDate "2019.01.16"]
[EventType "swiss"]
[EventCountry "AZE"]
[SourceTitle "playchess.com"]
[Source "ChessBase"]
[SourceQuality "1"]
[TimeControl "40/5400+30:1800+30"]

1. e4 {[%emt 0:00:00]} g6 {[%emt 0:04:48]} 2. d4 {[%emt 0:02:51]} Bg7 {[%emt 0:01:15]} 3. Nc3 {[%emt 0:00:13]} d6 {[%emt 0:00:06]} 4. Nf3 {[%emt 0:01:33]} Nf6 {[%emt 0:00:11]} 5. Be2 {[%emt 0:00:06]} O-O {[%emt 0:00:05]} 6. O-O {[%emt 0:00:04]} Nbd7 {[%emt 0:00:18]} 7. h3 {[%emt 0:01:15]} c6 {[%emt 0:02:44]} 8. e5 {[%emt 0:04:40]} Ne8 {[%emt 0:01:31]} 9. Bf4 {[%emt 0:01:18]} dxe5 {[%emt 0:08:17]} 10. dxe5 {[%emt 0:01:10] LiveBook: 31 Games} Qa5 {[%emt 0:01:42] B08: Pirc Defence: Classical System} (10... Nc7 11. Qc1 Ne6 12. Bh6 Qc7 13. Bxg7 Kxg7 14. Qe3 Qb6 15. Qxb6 Nxb6 16. Rfd1 a5 17. Rd2 Rd8 18. Rxd8 Nxd8 19. Rd1 Ne6 20. Bf1 Nc5 21. Rd4 Ne6 22. Rd2 Nc5 23. Rd4 Ne6 24. Rd2 Nc5 {½-½ (24) Bindrich,F (2609)-Jovanovic,Z (2550) Austria 2015}) 11. Bg5 {[%emt 0:03:26]} Nc7 {[%emt 0:06:06]} 12. Bxe7 {[%emt 0:02:07]} Re8 {[%emt 0:03:34] [#]} 13. Bd6 $1 {[%emt 0:02:26]} Nxe5 {[%emt 0:00:37]} 14. Nxe5 {[%emt 0:02:29]} Bxe5 {[%emt 0:00:39] [#]} 15. b4 $1 {[%emt 0:00:12]} Qa3 {[%emt 0:01:12]} 16. Bxe5 {[%emt 0:07:05]} Rxe5 {[%emt 0:00:05]} 17. Qd4 {[%emt 0:01:34]} Re8 $146 {[%emt 0:03:37]} ({Predecessor:} 17... Re7 $16 18. Ne4 {½-½ (30) Horvath,G (2280)-Dudas,J (2410) Balatonbereny 1997}) 18. Ne4 {[%emt 0:01:56]} Nd5 {[%emt 0:13:20] [#]} 19. Bc4 $1 {[%emt 0:09:31]} Rxe4 {[%emt 0:04:16]} 20. Qxe4 {[%emt 0:00:05]} Bf5 {[%emt 0:00:03]} 21. Qe5 {[%emt 0:02:13]} Nxb4 {[%emt 0:12:14]} 22. Rab1 {[%emt 0:06:53]} b5 {[%emt 0:08:09]} 23. Rb3 {[%emt 0:11:20]} Qa4 {[%emt 0:03:35]} 24. Qe7 {[%emt 0:05:20]} bxc4 {[%emt 0:04:28]} 25. Rxb4 {[%emt 0:02:53]} Qxc2 {[%emt 0:00:15]} 26. Rb7 {[%emt 0:06:03]} Rf8 {[%emt 0:00:46]} 27. Rxa7 {[%emt 0:00:17]} c3 {[%emt 0:02:55]} 28. Ra3 {[%emt 0:13:40]} Bd3 {[%emt 0:03:33]} 29. Re1 {[%emt 0:00:27]} Qd2 {[%emt 0:00:40]} 30. Qe3 {[%emt 0:03:19]} Rd8 {[%emt 0:01:04]} 31. Qe7 {[%emt 0:01:18]} Rf8 {[%emt 0:00:52]} 32. Qe3 {[%emt 0:03:59]} Rd8 {[%emt 0:00:12]} 33. Rc1 {[%emt 0:02:32]} Qxe3 {[%emt 0:01:30]} 34. fxe3 {[%emt 0:00:02]} c2 {[%emt 0:00:35]} 35. Kf2 {[%emt 0:00:13]} c5 {[%emt 0:00:53]} 36. Ke1 {[%emt 0:01:34]} c4 {[%emt 0:01:12]} 37. Kd2 {[%emt 0:01:14]} Be4+ {[%emt 0:03:19]} 38. Kc3 {[%emt 0:00:02]} Kg7 {[%emt 0:02:00]} 39. Kb2 {[%emt 0:01:05]} Rb8+ {[%emt 0:02:22]} 40. Kc3 {[%emt 0:00:00]} Rb1 {[%emt 0:00:00]} 41. Kd2 {[%emt 0:03:50]} Rb2 {[%emt 0:03:24]} 42. Kc3 {[%emt 0:08:51]} Rb1 {[%emt 0:00:41]} 43. Kd2 {[%emt 0:01:29]} Kf6 {[%emt 0:01:02]} 44. Rc3 {[%emt 0:00:27]} Rb4 {[%emt 0:01:55]} 45. a3 {[%emt 0:00:32]} Ra4 {[%emt 0:00:26]} 46. g3 {[%emt 0:02:37]} Ke5 $15 {[%emt 0:05:19]} 47. Rf1 {[%emt 0:00:42]} f6 {[%emt 0:09:48]} 48. h4 {[%emt 0:00:52]} f5 {[%emt 0:01:14]} 49. Rg1 {[%emt 0:07:24]} h5 {[%emt 0:01:17]} 50. Rf1 {[%emt 0:00:25]} Kd5 {[%emt 0:00:03]} 51. Rf4 {[%emt 0:04:27]} Ra6 {[%emt 0:01:06]} 52. Rf1 {[%emt 0:01:55]} Kc5 {[%emt 0:00:55]} 53. Rc1 {[%emt 0:01:29]} Rd6+ {[%emt 0:01:47]} 54. Ke2 {[%emt 0:00:02]} Kb5 {[%emt 0:00:32]} 55. Ke1 {[%emt 0:00:11]} Bd3 {[%emt 0:02:11]} 56. Kf2 {[%emt 0:00:09]} Be4 {[%emt 0:01:24]} 57. Ke2 {[%emt 0:00:07]} Kc5 {[%emt 0:00:05]} 58. Ke1 {[%emt 0:00:07]} Rb6 {[%emt 0:00:26]} 59. Ke2 {[%emt 0:00:35]} Rb1 {[%emt 0:00:55]} 60. Kd2 {[%emt 0:00:05]} Bd3 {[%emt 0:01:02]} 61. Re1 {[%emt 0:01:17]} Kb5 {[%emt 0:02:46]} 62. Rc1 {[%emt 0:00:04]} Kc5 {[%emt 0:01:41]} 63. Re1 {[%emt 0:00:02]} Kd5 {[%emt 0:00:15]} 64. Rc1 {[%emt 0:00:04]} Rb6 {[%emt 0:02:30]} 65. Rxd3+ {[%emt 0:03:47]} cxd3 {[%emt 0:00:09]} 66. Kxd3 {[%emt 0:00:02]} Rb3+ {[%emt 0:00:28]} 67. Ke2 {[%emt 0:00:11]} Ke4 {[%emt 0:01:12]} 68. Rxc2 {[%emt 0:00:02]} Rxe3+ {[%emt 0:00:04]} 69. Kf2 {[%emt 0:00:04]} Rxa3 {[%emt 0:00:01]} 70. Re2+ {[%emt 0:01:11]} Kd5 {[%emt 0:00:17]} 71. Re8 {[%emt 0:00:10]} Ra6 {[%emt 0:01:29]} 72. Kf3 {[%emt 0:00:05]} Ra3+ {[%emt 0:00:28]} 73. Kf4 {[%emt 0:00:15]} Ra4+ {[%emt 0:00:03]} 74. Kf3 {[%emt 0:00:05]} Rg4 {[%emt 0:00:48]} 75. Re7 {[%emt 0:01:45]} Kd6 {[%emt 0:00:09]} 76. Ra7 {[%emt 0:00:05]} Ke5 {[%emt 0:00:09]} 77. Ra5+ {[%emt 0:00:05]} Kf6 {[%emt 0:00:04]} 78. Ra6+ {[%emt 0:00:03]} Kg7 {[%emt 0:00:03]} 79. Ra7+ {[%emt 0:00:09]} Kf6 {[%emt 0:00:37]} 80. Ra6+ {[%emt 0:00:04]} Ke5 {[%emt 0:00:19]} 81. Ra5+ {[%emt 0:00:12]} Kd4 {[%emt 0:00:26]} 82. Ra4+ {[%emt 0:00:08]} Kd3 {[%emt 0:00:04]} 83. Ra6 {[%emt 0:00:27]} Kd2 {[%emt 0:00:08]} 84. Rb6 {[%emt 0:00:14]} 1/2-1/2

[Event "AZE-ch Men 2019"]
[Site "Baku"]
[Date "2019.01.17"]
[Round "2"]
[White "Isgandarov, Shahriyar"]
[Black "Abbasov, Amil"]
[Result "0-1"]
[ECO "B31"]
[WhiteElo "2113"]
[BlackElo "2190"]
[Annotator "NA"]
[PlyCount "118"]
[EventDate "2019.01.16"]
[EventType "swiss"]
[EventCountry "AZE"]
[SourceTitle "playchess.com"]
[Source "ChessBase"]
[SourceQuality "1"]
[TimeControl "40/5400+30:1800+30"]

1. e4 c5 2. Nf3 Nc6 3. Bb5 g6 4. c3 Bg7 5. d4 Qb6 6. a4 cxd4 7. O-O a6 8. Bxc6 dxc6 9. a5 Qc7 10. cxd4 Bg4 11. Be3 Rd8 12. Ra4 Nf6 13. h3 Bd7 14. Nc3 O-O 15. Qc1 Qc8 16. Kh2 Ne8 17. e5 Nc7 18. Bh6 Bf5 19. Re1 Nb5 20. Qf4 Qd7 21. Qh4 f6 22. Bxg7 Kxg7 23. Nxb5 axb5 24. Ra3 Be6 25. a6 bxa6 26. Rxa6 Ra8 27. Rxa8 Rxa8 28. Nd2 Ra4 29. exf6+ exf6 30. Nf3 Bd5 31. Nd2 Rb4 32. Qf4 Bf7 33. Re4 Rxb2 34. Qe3 Qd5 35. Rh4 Qg5 36. Rf4 Qd5 37. Ne4 Rb3 38. Qe2 f5 39. Ng3 Qd6 40. Qd2 Bd5 41. Rh4 Qe7 42. Qh6+ Kg8 43. Nxf5 gxf5 44. Rh5 Ra3 45. Rxf5 Ra8 46. Re5 Qc7 47. f4 Kh8 48. g4 Qf7 49. f5 b4 50. Qd6 b3 51. Re7 Qf8 52. Qe5+ Kg8 53. f6 Ra2+ 54. Kg1 Bf7 55. Rb7 Ra8 56. Qf4 Kh8 57. Qc7 Qe8 58. Rxb3 Qe1+ 59. Kg2 Bd5+ 0-1

[Event "AZE-ch Men 2019"]
[Site "Baku"]
[Date "2019.01.18"]
[Round "3"]
[White "Muradli, Mahammad"]
[Black "Davidov, Samir"]
[Result "1-0"]
[ECO "A55"]
[WhiteElo "2432"]
[BlackElo "2344"]
[Annotator "NA"]
[PlyCount "119"]
[EventDate "2019.01.16"]
[EventType "swiss"]
[EventCountry "AZE"]
[SourceTitle "playchess.com"]
[Source "ChessBase"]
[SourceQuality "1"]
[TimeControl "40/5400+30:1800+30"]

1. d4 {[%emt 0:10:08]} d6 {[%emt 0:10:37]} 2. Nf3 {[%emt 0:00:27]} Nf6 {[%emt 0:10:49]} 3. c4 {[%emt 0:00:07]} Nbd7 {[%emt 0:00:07]} 4. Nc3 {[%emt 0:00:08]} e5 {[%emt 0:00:09]} 5. e4 {[%emt 0:00:06]} c6 {[%emt 0:00:12]} 6. Be2 {[%emt 0:00:06]} h6 {[%emt 0:00:05] A55: Old Indian Defence with Nf3 and e4} (6... g6 7. O-O Bg7 8. Re1 O-O 9. Bf1 h6 10. Rb1 Nh7 11. dxe5 dxe5 12. b4 a5 13. b5 Qe7 14. Na4 Rd8 15. Qb3 Nhf8 16. Ba3 Qf6 17. bxc6 bxc6 18. Nb6 {0-1 (35) Wojtaszek,R (2727)-Movsesian,S (2653) Huaian 2016}) 7. Be3 {[%emt 0:04:00]} Ng4 $146 {[%emt 0:01:36]} ({Predecessor:} 7... Qc7 8. Rc1 Be7 9. O-O Nf8 10. Ne1 g5 11. f3 Ng6 12. Nc2 Nf4 13. Bxf4 gxf4 14. b4 {1-0 (27) Garceran Izquierdo,R (1698)-Lopez Garralon,M (1955) Madrid 2013}) 8. Bd2 {[%emt 0:00:19]} Qf6 {[%emt 0:08:56]} 9. d5 {[%emt 0:02:37]} Qd8 {[%emt 0:00:32]} 10. O-O {[%emt 0:05:14]} Ngf6 {[%emt 0:00:45]} 11. Ne1 {[%emt 0:03:02]} g5 {[%emt 0:01:34]} 12. Nd3 {[%emt 0:03:48]} Rg8 {[%emt 0:00:55]} 13. Be3 {[%emt 0:05:03]} h5 {[%emt 0:03:37]} 14. f3 {[%emt 0:13:03]} h4 {[%emt 0:01:09]} 15. dxc6 {[%emt 0:04:15]} bxc6 {[%emt 0:00:32]} 16. c5 {[%emt 0:00:04]} (16. b4 $142) 16... dxc5 {[%emt 0:03:00]} 17. b3 {[%emt 0:05:36]} Nh5 {[%emt 0:02:30]} 18. Qc2 {[%emt 0:06:38]} Nf4 {[%emt 0:01:54]} 19. Rfd1 {[%emt 0:00:08]} Qf6 {[%emt 0:00:51]} 20. Nf2 {[%emt 0:11:47]} Ne6 {[%emt 0:06:57]} 21. Ng4 {[%emt 0:01:38]} Qe7 {[%emt 0:06:10]} 22. Na4 {[%emt 0:00:31]} Rg6 {[%emt 0:00:25]} 23. Rxd7 {[%emt 0:06:32]} Bxd7 {[%emt 0:00:12]} 24. Nxe5 {[%emt 0:00:03]} Qf6 {[%emt 0:00:11]} 25. Qb2 {[%emt 0:05:30]} Bg7 {[%emt 0:00:13]} 26. Nc4 {[%emt 0:00:06]} Qxb2 {[%emt 0:00:12]} 27. Naxb2 {[%emt 0:01:01]} Nd4 {[%emt 0:00:06]} 28. Bd3 {[%emt 0:01:09]} h3 {[%emt 0:04:24]} 29. e5 {[%emt 0:03:25]} Bf5 {[%emt 0:01:27]} 30. Bxd4 {[%emt 0:01:13]} Bxd3 {[%emt 0:00:05]} 31. Nxd3 {[%emt 0:00:01]} cxd4 {[%emt 0:00:09]} 32. g4 {[%emt 0:01:47]} Bf8 {[%emt 0:02:37]} 33. Kf2 {[%emt 0:01:34]} O-O-O {[%emt 0:00:59]} 34. Kg3 {[%emt 0:01:06]} Re6 {[%emt 0:00:42]} 35. Rf1 {[%emt 0:02:31]} f6 {[%emt 0:00:24]} 36. f4 {[%emt 0:00:16]} fxe5 {[%emt 0:02:26]} 37. fxe5 {[%emt 0:00:19]} Be7 {[%emt 0:04:04]} 38. Rf5 {[%emt 0:00:47]} Kc7 {[%emt 0:03:46]} 39. Kf3 {[%emt 0:00:26]} Rh6 {[%emt 0:01:41]} 40. Ke4 {[%emt 0:00:00] [#]} Kd7 $1 {[%emt 0:00:00]} 41. Nd2 {[%emt 0:09:04]} c5 {[%emt 0:03:04]} 42. Rf7 {[%emt 0:05:28]} Ke6 {[%emt 0:00:58]} ({Better is} 42... Ke8 $17 43. Rf2 Rb8) 43. Rg7 {[%emt 0:01:41]} Rh4 {[%emt 0:07:26]} 44. Rg6+ {[%emt 0:00:32]} Kf7 {[%emt 0:00:33]} 45. Kf5 {[%emt 0:00:37]} Rf8 {[%emt 0:07:07]} (45... Rhh8 $11) 46. Ne4 $1 {[%emt 0:00:36]} Ke8+ {[%emt 0:00:29]} (46... a5 $16 {was necessary.}) 47. Nf6+ {[%emt 0:00:09]} Bxf6 {[%emt 0:00:32]} 48. exf6 {[%emt 0:00:05]} Rh7 {[%emt 0:00:03]} 49. Ne5 {[%emt 0:04:23]} ({Less strong is} 49. Kxg5 Kf7 $16) (49. Rxg5 Rhf7 $14) 49... Rd7 $18 {[%emt 0:03:15]} (49... d3 50. Nxd3 Rd7) 50. Nxd7 {[%emt 0:01:27]} Kxd7 {[%emt 0:00:09]} 51. Rh6 {[%emt 0:01:15]} a5 {[%emt 0:01:46]} 52. Rxh3 {[%emt 0:00:34]} a4 {[%emt 0:00:50]} 53. Rd3 {[%emt 0:01:02]} Kd6 {[%emt 0:00:15]} 54. b4 {[%emt 0:01:24]} Rb8 {[%emt 0:14:24]} 55. bxc5+ {[%emt 0:00:45]} Kxc5 {[%emt 0:00:05]} 56. Kxg5 {[%emt 0:02:00]} Kc4 {[%emt 0:00:05]} 57. Rd1 {[%emt 0:00:11]} d3 {[%emt 0:00:18]} 58. f7 {[%emt 0:00:19]} Kc3 {[%emt 0:00:27]} 59. Kf6 {[%emt 0:00:10]} Kc2 {[%emt 0:00:06]} 60. Rg1 {[%emt 0:00:29]} 1-0

[Event "AZE-ch Men 2019"]
[Site "Baku"]
[Date "2019.01.18"]
[Round "3"]
[White "Bashirli, Nail"]
[Black "Novruzov, Emin"]
[Result "1-0"]
[ECO "C63"]
[WhiteElo "2324"]
[BlackElo "1910"]
[Annotator "NA"]
[PlyCount "105"]
[EventDate "2019.01.16"]
[EventType "swiss"]
[EventCountry "AZE"]
[SourceTitle "playchess.com"]
[Source "ChessBase"]
[SourceQuality "1"]
[TimeControl "40/5400+30:1800+30"]

1. e4 {[%emt 0:08:49]} e5 {[%emt 0:00:00]} 2. Nf3 {[%emt 0:00:25]} Nc6 {[%emt 0:00:00]} 3. Bb5 {[%emt 0:01:21]} f5 {[%emt 0:00:26]} 4. d3 {[%emt 0:00:40]} fxe4 {[%emt 0:00:14]} 5. dxe4 {[%emt 0:00:03]} Nf6 {[%emt 0:00:04]} 6. Nc3 {[%emt 0:00:50]} Bb4 {[%emt 0:00:11]} 7. Bg5 {[%emt 0:00:52]} Bxc3+ {[%emt 0:00:51] C63: Ruy Lopez: Schliemann/Jaenisch Defence} 8. bxc3 {[%emt 0:00:17]} d6 {[%emt 0:00:26]} 9. Nd2 {[%emt 0:04:50]} O-O {[%emt 0:00:53]} 10. O-O {[%emt 0:00:19]} Qe8 {[%emt 0:00:17]} (10... Be6 11. Bc4 Qe8 12. Qe2 Kh8 13. f3 Nh5 14. g3 Bh3 15. Rf2 Qg6 16. Be3 Nf4 17. Qd1 {½-½ (58) Byambaa,Z (2279)-Lavrov,M (2397) Moscow 2012}) 11. f3 {[%emt 0:00:30]} Qg6 $146 {[%emt 0:03:41]} ({Predecessor:} 11... a6 12. Bc4+ Kh8 13. Qe2 Nh5 14. Rab1 Qg6 15. Be3 Nd8 16. Rf2 a5 17. a4 {0-1 (29) Opasiak,D (1797)-Veltkamp,G (2123) Caleta 2018}) 12. Be3 {[%emt 0:05:02]} Nd8 {[%emt 0:01:56]} 13. Rf2 {[%emt 0:04:04]} Ne6 {[%emt 0:01:42]} 14. Bf1 {[%emt 0:06:54]} Nh5 {[%emt 0:14:27]} 15. Kh1 {[%emt 0:00:55]} Kh8 {[%emt 0:02:51]} 16. Qe1 {[%emt 0:04:40]} Rf6 {[%emt 0:05:26]} 17. g3 {[%emt 0:07:38]} Bd7 {[%emt 0:03:42]} 18. Bg2 {[%emt 0:01:36]} Raf8 {[%emt 0:02:28]} 19. Qe2 {[%emt 0:00:50]} b6 {[%emt 0:05:23]} 20. Raf1 {[%emt 0:08:53]} Ng5 {[%emt 0:28:28]} 21. f4 {[%emt 0:08:30]} Qh6 {[%emt 0:05:53]} 22. Kg1 {[%emt 0:03:06]} Nh3+ {[%emt 0:12:15]} 23. Bxh3 {[%emt 0:00:12]} Bxh3 {[%emt 0:00:04]} 24. f5 {[%emt 0:00:20]} Bxf1 {[%emt 0:02:39]} 25. Nxf1 {[%emt 0:03:55]} g5 {[%emt 0:00:19]} 26. Rg2 {[%emt 0:00:08]} Rg8 {[%emt 0:03:33]} 27. h4 {[%emt 0:02:45]} Nf4 {[%emt 0:02:02]} 28. gxf4 {[%emt 0:00:26]} gxf4 {[%emt 0:00:26]} 29. Rxg8+ {[%emt 0:01:40]} Kxg8 {[%emt 0:00:02]} 30. Bf2 {[%emt 0:00:36]} Qg7+ {[%emt 0:00:48]} 31. Kh1 {[%emt 0:00:49]} Kh8 {[%emt 0:01:03]} 32. Nh2 {[%emt 0:00:24]} Rf8 {[%emt 0:00:22]} 33. Qg4 {[%emt 0:03:22]} Qf7 {[%emt 0:00:48]} 34. Nf3 {[%emt 0:00:23]} Qxa2 {[%emt 0:00:57]} 35. Ng5 {[%emt 0:01:00]} Qg8 {[%emt 0:00:38]} 36. Qh5 {[%emt 0:00:48]} Rf6 {[%emt 0:00:53]} 37. Ne6 {[%emt 0:02:56]} Qf7 {[%emt 0:00:32]} 38. Qg5 {[%emt 0:04:42]} h6 {[%emt 0:01:22]} 39. Qg4 {[%emt 0:00:58]} (39. Qg1 $142) 39... d5 {[%emt 0:00:26]} 40. Ng5 {[%emt 0:00:00]} hxg5 {[%emt 0:00:00]} (40... Qe7 $17 41. Ne6 dxe4 42. Nxf4 exf4) 41. hxg5 {[%emt 0:11:24]} Rd6 {[%emt 0:10:11]} 42. g6 $11 {[%emt 0:02:46]} Qg7 {[%emt 0:04:10]} 43. exd5 {[%emt 0:00:31]} Rxd5 {[%emt 0:00:43]} 44. Qh5+ {[%emt 0:03:36]} Kg8 {[%emt 0:00:12]} 45. f6 {[%emt 0:00:13]} Rd1+ {[%emt 0:16:12]} 46. Kh2 {[%emt 0:00:07]} Qxf6 {[%emt 0:01:05]} 47. Qh7+ {[%emt 0:00:04]} Kf8 {[%emt 0:00:03]} 48. Bh4 {[%emt 0:00:03]} Rd2+ {[%emt 0:01:16]} 49. Kg1 {[%emt 0:00:04]} Rd1+ {[%emt 0:00:24]} 50. Kf2 {[%emt 0:00:04]} Rd2+ {[%emt 0:01:31]} 51. Ke1 {[%emt 0:00:18]} Rd1+ {[%emt 0:00:36]} 52. Kxd1 {[%emt 0:00:04]} Qd6+ {[%emt 0:00:04]} 53. Ke1 {[%emt 0:00:03]} 1-0

[Event "AZE-ch Men 2019"]
[Site "Baku"]
[Date "2019.01.18"]
[Round "3"]
[White "Ahadzade, Kanan"]
[Black "Bajarani, Ulvi"]
[Result "0-1"]
[ECO "E16"]
[WhiteElo "2019"]
[BlackElo "2421"]
[Annotator "RC"]
[PlyCount "160"]
[EventDate "2019.01.16"]
[EventType "swiss"]
[EventCountry "AZE"]
[SourceTitle "playchess.com"]
[Source "ChessBase"]
[SourceQuality "1"]
[TimeControl "40/5400+30:1800+30"]

1. d4 {[%emt 0:00:00]} e6 {[%emt 0:00:00]} 2. c4 {[%emt 0:00:00]} Nf6 {[%emt 0:00:00]} 3. Nf3 {[%emt 0:00:08]} b6 {[%emt 0:00:00]} 4. g3 {[%emt 0:00:05]} Bb7 {[%emt 0:00:12]} 5. Bg2 {[%emt 0:00:05]} Bb4+ {[%emt 0:00:15]} 6. Bd2 {[%emt 0:00:05]} a5 {[%emt 0:00:26]} 7. a3 {[%emt 0:00:36]} Bxd2+ {[%emt 0:00:54]} 8. Qxd2 {[%emt 0:01:22]} O-O {[%emt 0:00:07]} 9. O-O {[%emt 0:00:03]} d6 {[%emt 0:00:30]} 10. Nc3 {[%emt 0:00:04]} Na6 {[%emt 0:01:16]} 11. Rad1 {[%emt 0:03:14]} Qe7 {[%emt 0:00:40]} 12. Qc2 {[%emt 0:03:32]} Rfd8 {[%emt 0:07:10]} 13. e4 {[%emt 0:01:25]} e5 {[%emt 0:00:39]} 14. Nd5 {[%emt 0:06:37]} Nxd5 {[%emt 0:00:12]} 15. exd5 {[%emt 0:00:35]} exd4 {[%emt 0:01:28]} 16. Rxd4 {[%emt 0:02:14]} Re8 {[%emt 0:00:35]} 17. Rh4 {[%emt 0:05:03]} h6 {[%emt 0:02:20]} 18. Nd4 {[%emt 0:01:15]} Bc8 {[%emt 0:01:22]} 19. Qc3 {[%emt 0:20:14]} a4 {[%emt 0:04:42]} 20. Re4 {[%emt 0:05:16]} Qf8 {[%emt 0:00:06]} 21. Rxe8 {[%emt 0:00:13]} Qxe8 {[%emt 0:00:06]} 22. Re1 {[%emt 0:00:03]} Qf8 {[%emt 0:00:11]} 23. Be4 {[%emt 0:04:06]} Nc5 {[%emt 0:06:15]} 24. Bf5 {[%emt 0:02:56]} Ba6 {[%emt 0:00:33]} 25. Re3 {[%emt 0:18:23]} g6 {[%emt 0:10:53]} 26. Bc2 {[%emt 0:08:11]} Re8 {[%emt 0:01:22]} 27. Rf3 {[%emt 0:03:03]} Qg7 {[%emt 0:00:32]} 28. h4 {[%emt 0:00:25]} h5 {[%emt 0:01:17]} 29. Kg2 {[%emt 0:03:33]} Bc8 {[%emt 0:07:04]} 30. Nb5 {[%emt 0:02:43]} Qxc3 {[%emt 0:01:36]} 31. Nxc3 {[%emt 0:02:23]} Bd7 {[%emt 0:00:07]} 32. Re3 {[%emt 0:00:19]} Rb8 {[%emt 0:00:52]} 33. Ne4 {[%emt 0:02:40]} Nxe4 {[%emt 0:02:20]} 34. Bxe4 {[%emt 0:01:24]} b5 {[%emt 0:00:50]} 35. cxb5 {[%emt 0:02:23]} Rxb5 {[%emt 0:00:09]} 36. Re2 {[%emt 0:00:16]} Kf8 {[%emt 0:01:31]} 37. Rc2 {[%emt 0:00:35]} Rb7 {[%emt 0:01:38]} 38. Kf3 {[%emt 0:00:13]} Ke7 {[%emt 0:03:03]} 39. Kf4 {[%emt 0:00:06]} f5 {[%emt 0:01:18]} 40. Bd3 {[%emt 0:00:00]} Kf6 {[%emt 0:00:00]} 41. Ke3 {[%emt 0:05:25]} Be8 {[%emt 0:05:23]} 42. Kd4 {[%emt 0:01:34]} Ke7 {[%emt 0:00:08]} 43. Bc4 {[%emt 0:02:12]} Kd8 {[%emt 0:00:14]} 44. Ba2 {[%emt 0:02:34]} Rb5 {[%emt 0:01:36]} 45. Bc4 {[%emt 0:00:44]} Rc5 {[%emt 0:01:49]} 46. Rc3 {[%emt 0:00:03]} Bf7 {[%emt 0:00:50]} 47. b4 {[%emt 0:01:34]} axb3 {[%emt 0:00:10]} 48. Bxb3 {[%emt 0:00:23]} Rb5 {[%emt 0:00:49]} 49. Bc4 {[%emt 0:00:22]} Ra5 {[%emt 0:00:32]} 50. Rb3 {[%emt 0:02:29]} Ra4 {[%emt 0:01:30]} 51. Rb8+ {[%emt 0:03:24]} Kd7 {[%emt 0:00:45]} 52. Rb4 {[%emt 0:01:12]} Rxa3 {[%emt 0:01:06]} 53. Bb5+ {[%emt 0:00:06]} Kc8 {[%emt 0:02:42]} 54. Bc6 {[%emt 0:00:41]} Ra2 {[%emt 0:04:22]} 55. Ke3 {[%emt 0:00:26]} Ra5 {[%emt 0:02:04]} 56. Kd4 {[%emt 0:00:16]} Bxd5 {[%emt 0:00:18]} 57. Ra4 {[%emt 0:02:12]} Rxa4+ {[%emt 0:00:08]} 58. Bxa4 {[%emt 0:00:06]} Bf7 {[%emt 0:00:07]} 59. Bc6 {[%emt 0:00:34]} Kd8 {[%emt 0:00:07]} 60. f3 {[%emt 0:00:39]} Be8 {[%emt 0:00:14]} 61. Bd5 {[%emt 0:00:14]} Ke7 {[%emt 0:00:10]} 62. Bb3 {[%emt 0:00:21]} c5+ {[%emt 0:00:14]} 63. Ke3 {[%emt 0:00:07]} Kf6 {[%emt 0:00:13]} 64. Bd1 {[%emt 0:00:07]} Bd7 {[%emt 0:00:10]} 65. Bb3 {[%emt 0:00:07]} Be6 {[%emt 0:00:08]} 66. Bc2 {[%emt 0:00:05]} d5 {[%emt 0:00:26]} 67. Ba4 {[%emt 0:00:08]} Ke5 {[%emt 0:00:18]} 68. f4+ {[%emt 0:00:10]} Kf6 {[%emt 0:00:07]} 69. Be8 {[%emt 0:00:09]} Bf7 {[%emt 0:00:06]} 70. Bd7 {[%emt 0:00:05]} Ke7 {[%emt 0:00:06]} 71. Ba4 {[%emt 0:00:03]} Kd6 {[%emt 0:00:09]} 72. Bb5 {[%emt 0:00:10]} Kc7 {[%emt 0:00:08]} 73. Kd3 {[%emt 0:00:10]} Kb6 {[%emt 0:00:06]} 74. Bd7 {[%emt 0:00:05]} Ka5 {[%emt 0:00:17]} 75. Kc3 {[%emt 0:00:05]} d4+ {[%emt 0:00:16]} 76. Kd3 {[%emt 0:00:04]} Kb4 {[%emt 0:00:08]} 77. Bc6 {[%emt 0:00:03]} Bc4+ {[%emt 0:00:24]} 78. Kc2 {[%emt 0:00:28]} Bb5 {[%emt 0:00:06]} 79. Bd5 {[%emt 0:00:07]} c4 {[%emt 0:00:09]} 80. Bf7 {[%emt 0:00:08]} c3 {[%emt 0:00:08]} 0-1

[Event "AZE-ch Men 2019"]
[Site "Baku"]
[Date "2019.01.18"]
[Round "3"]
[White "Guliyev, Gasan"]
[Black "Abdulov, Orkhan"]
[Result "0-1"]
[ECO "A40"]
[WhiteElo "1997"]
[BlackElo "2395"]
[Annotator "NA RC"]
[PlyCount "72"]
[EventDate "2019.01.16"]
[EventType "swiss"]
[EventCountry "AZE"]
[SourceTitle "playchess.com"]
[Source "ChessBase"]
[SourceQuality "1"]
[TimeControl "40/5400+30:1800+30"]

1. d4 {[%emt 0:00:59]} e6 {[%emt 0:00:16]} 2. Nf3 {[%emt 0:01:55]} f5 {[%emt 0:00:35]} 3. g3 {[%emt 0:03:21]} b6 {[%emt 0:00:31]} 4. Bg2 {[%emt 0:03:10]} Bb7 {[%emt 0:00:03]} 5. c4 {[%emt 0:07:47]} Nf6 {[%emt 0:00:13]} 6. O-O {[%emt 0:02:33]} g6 {[%emt 0:04:33]} 7. Nc3 {[%emt 0:11:32]} Bg7 {[%emt 0:02:30]} 8. d5 {[%emt 0:12:07]} O-O {[%emt 0:03:04]} 9. Bf4 {[%emt 0:16:53]} Na6 {[%emt 0:05:54]} 10. Nd4 {[%emt 0:07:37]} Nh5 $11 {[%emt 0:10:46]} 11. Bc1 {[%emt 0:14:41]} e5 {[%emt 0:03:34]} 12. Ndb5 {[%emt 0:03:16]} d6 {[%emt 0:03:48]} 13. f4 {[%emt 0:04:26]} exf4 {[%emt 0:08:41]} 14. gxf4 {[%emt 0:00:06]} Nc5 {[%emt 0:00:20]} 15. Nd4 {[%emt 0:02:24]} Qf6 {[%emt 0:01:59]} 16. e3 {[%emt 0:02:18]} a5 {[%emt 0:00:37]} 17. Bf3 {[%emt 0:01:03]} Nxf4 {[%emt 0:01:36]} 18. exf4 {[%emt 0:00:42]} Qxd4+ {[%emt 0:00:05]} 19. Qxd4 {[%emt 0:00:28]} Bxd4+ {[%emt 0:00:03]} 20. Kg2 {[%emt 0:00:08]} Bxc3 {[%emt 0:01:01]} 21. bxc3 {[%emt 0:00:06]} Ba6 {[%emt 0:00:11]} 22. Be3 {[%emt 0:01:00]} Bxc4 {[%emt 0:00:12]} 23. Rfd1 {[%emt 0:00:21]} Rae8 {[%emt 0:00:36]} 24. Bxc5 {[%emt 0:00:36]} bxc5 {[%emt 0:00:53]} 25. Kf2 {[%emt 0:01:09]} Rb8 {[%emt 0:00:38]} 26. Rd2 {[%emt 0:01:01]} a4 {[%emt 0:02:12]} 27. Be2 {[%emt 0:00:27]} Bxe2 {[%emt 0:00:44]} 28. Rxe2 {[%emt 0:00:03]} Kf7 {[%emt 0:01:22]} 29. Rae1 {[%emt 0:00:20]} Rfe8 {[%emt 0:01:15]} 30. Rxe8 {[%emt 0:01:20]} Rxe8 {[%emt 0:00:01]} 31. Rb1 {[%emt 0:00:09]} Ke7 {[%emt 0:00:44]} 32. Rb7 {[%emt 0:01:08]} Kd7 {[%emt 0:00:08]} 33. Ra7 {[%emt 0:00:10]} Re4 {[%emt 0:00:06]} 34. Kg3 {[%emt 0:00:16]} Rc4 {[%emt 0:00:04]} 35. Kh4 {[%emt 0:01:16]} h6 {[%emt 0:00:32]} 36. Kg3 {[%emt 0:00:18]} Rxc3+ {[%emt 0:00:07]} 0-1